bitfinex-derivatives/quotes_SOLF0:USTF0_20250923
["timestamp","ask_amount","ask_price","bid_price","bid_amount"]
[1758635434978,58.93,219.55,219.42,7.23]
[1758635435376,4.097,219.53,219.42,7.23]
[1758635435577,58.93,219.55,219.42,7.23]
[1758635436379,7.41,219.52,219.37,7.23]
[1758635437082,4.0973,219.51,219.38,4.0997]
[1758635437383,63.7368,219.51,219.37,7.23]
[1758635437584,4.0981,219.47,219.35,31.94]
[1758635437778,7.41,219.46,219.32,7.23]
[1758635437982,52.49,219.46,219.32,7.23]
[1758635438281,7.41,219.46,219.33,63.7881]
[1758635438486,7.41,219.46,219.35,7.23]
[1758635439590,115.96,219.49,219.37,63.7762]
[1758635439784,7.41,219.52,219.36,63.7791]
[1758635439985,7.41,219.52,219.39,7.23]
[1758635440684,4.0975,219.5,219.39,7.23]
[1758635440885,7.41,219.49,219.39,7.23]
[1758635441087,7.41,219.49,219.37,4.0998]
[1758635441288,7.41,219.49,219.39,4.0994]
[1758635441882,7.41,219.49,219.41,4.0991]
[1758635442484,7.41,219.49,219.38,7.23]
[1758635442883,7.41,219.49,219.41,4.099]
[1758635443079,4.0967,219.54,219.4,63.7675]
[1758635443080,7.41,219.54,219.4,63.7675]
[1758635443284,123.41,219.54,219.38,7.23]
[1758635443687,123.41,219.54,219.39,4.0995]
[1758635443881,123.41,219.54,219.38,7.23]
[1758635444385,7.41,219.51,219.38,11.3296]
[1758635444585,7.41,219.51,219.38,7.23]
[1758635444791,4.0975,219.5,219.38,7.23]
[1758635445793,7.41,219.51,219.39,4.0995]
[1758635445992,116.02,219.5,219.38,7.23]
[1758635446186,11.5073,219.51,219.38,7.23]
[1758635446385,414.03878511,219.55,219.37,63.7759]
[1758635446386,344.14,219.55,219.42,7.23]
[1758635446894,344.14,219.55,219.43,63.7585]
[1758635447290,344.14,219.55,219.47,4.0979]
[1758635447491,344.14,219.55,219.47,11.3279]
[1758635447883,344.14,219.55,219.47,7.23]
[1758635448599,344.14,219.55,219.41,7.23]
[1758635449097,4.0969,219.53,219.41,11.329]
[1758635449693,116.02,219.52,219.41,7.23]
[1758635449898,116.02,219.52,219.38,7.23]
[1758635450297,7.41,219.53,219.38,7.23]
[1758635450489,116.02,219.51,219.42,4.0988]
[1758635450693,116.02,219.51,219.38,7.23]
[1758635451104,7.41,219.5,219.38,7.23]
[1758635451303,7.41,219.47,219.32,7.23]
[1758635451492,7.41,219.44,219.27,7.23]
[1758635451693,7.41,219.42,219.27,7.23]
[1758635451897,7.41,219.4,219.27,11.3315]
[1758635452399,7.41,219.4,219.27,7.23]
[1758635452794,116.06,219.39,219.27,7.23]
[1758635453199,120.1594,219.39,219.27,7.23]
[1758635453502,4.0994,219.39,219.27,7.23]
[1758635453697,120.1394,219.39,219.27,7.23]
[1758635454000,7.41,219.4,219.27,7.23]
[1758635454700,7.41,219.4,219.31,4.1009]
[1758635455198,7.41,219.4,219.27,7.23]
[1758635455199,7.41,219.4,219.29,63.7987]
[1758635455400,14.72,219.45,219.31,7.6]
[1758635456202,7.06,219.47,219.35,7.6]
[1758635457697,7.06,219.47,219.35,4.1001]
[1758635458098,116.06,219.46,219.35,4.1001]
[1758635458402,7.06,219.47,219.35,7.6]
[1758635459496,7.06,219.54,219.36,63.7773]
[1758635459695,7.06,219.54,219.42,63.7606]
[1758635459899,7.06,219.54,219.41,7.6]
[1758635460299,7.06,219.54,219.44,4.0985]
[1758635460696,7.06,219.54,219.41,7.6]
[1758635460897,7.06,219.54,219.44,4.0985]
[1758635461097,7.06,219.65,219.48,63.7434]
[1758635461294,123.12,219.65,219.49,7.6]
[1758635461493,123.12,219.65,219.5,63.7371]
[1758635461691,123.12,219.65,219.51,63.7348]
[1758635461892,123.12,219.65,219.49,7.6]
[1758635462105,186.8153,219.65,219.49,7.6]
[1758635462302,123.12,219.65,219.49,7.6]
[1758635462904,7.06,219.62,219.5,4.0974]
[1758635463099,7.06,219.62,219.49,7.6]
[1758635463302,4.0966,219.55,219.43,7.6]
[1758635463508,7.06,219.54,219.43,7.6]
[1758635464108,4.0968,219.53,219.43,7.6]
[1758635464404,4.0968,219.53,219.37,7.6]
[1758635464908,4.0972,219.51,219.4,4.0992]
[1758635465110,7.06,219.5,219.37,7.6]
[1758635465910,7.06,219.5,219.4,4.0991]
[1758635466509,11.1574,219.5,219.4,4.0991]
[1758635466912,7.06,219.5,219.37,7.6]
[1758635467305,4.0981,219.46,219.37,7.6]
[1758635468310,7.06,219.5,219.37,7.6]
[1758635468706,123.1,219.5,219.37,7.6]
[1758635469211,123.1,219.5,219.38,63.7725]
[1758635469212,7.06,219.5,219.38,63.7725]
[1758635469413,4.0968,219.53,219.39,7.6]
[1758635470113,4.0968,219.53,219.41,4.0989]
[1758635470308,71.92,219.54,219.41,4.0989]
[1758635470309,4.0972,219.52,219.41,4.0989]
[1758635470511,7.06,219.51,219.3,344.5]
[1758635470715,63.7378,219.5,219.36,4.1]
[1758635471014,7.06,219.51,219.39,7.03]
[1758635471408,70.7959,219.51,219.31,155.6919]
[1758635471603,7.06,219.51,219.32,7.03]
[1758635471813,7.06,219.51,219.38,4.0996]
[1758635472017,7.06,219.51,219.33,63.787]
[1758635472018,123.1,219.51,219.37,7.03]
[1758635472813,7.06,219.51,219.41,11.1289]
[1758635473017,4.0963,219.56,219.41,7.03]
[1758635473311,7.58,219.57,219.44,63.7538]
[1758635473516,116.04,219.59,219.47,63.7464]
[1758635473813,116.04,219.59,219.48,7.03]
[1758635474012,123.62,219.59,219.48,7.03]
[1758635474617,7.58,219.59,219.48,7.03]
[1758635474816,116.14,219.63,219.49,63.7394]
[1758635474817,121.19550459,219.63,219.49,63.7394]
[1758635475007,125.29050459,219.63,219.52,4.097]
[1758635475204,120.235,219.63,219.52,4.097]
[1758635475403,5.05550459,219.62,219.52,4.097]
[1758635475912,5.05550459,219.63,219.5,63.7368]
[1758635476214,5.05550459,219.65,219.53,63.7282]
[1758635476409,5.05550459,219.66,219.54,7.03]
[1758635476604,76.33050459,219.65,219.48,7.03]
[1758635476808,5.05550459,219.64,219.48,7.03]
[1758635477004,12.63550459,219.6,219.48,7.03]
[1758635477210,4.0961,219.57,219.48,7.03]
[1758635477406,63.7558,219.44,219.31,5.05901407]
[1758635477613,5.05550459,219.4,219.22,63.8174]
[1758635477811,4.1,219.36,219.2,9.71359208]
[1758635478007,12.63550459,219.41,219.21,63.8215]
[1758635478212,12.63550459,219.41,219.23,63.8151]
[1758635478616,12.63550459,219.41,219.24,63.8126]
[1758635478815,12.63550459,219.41,219.25,63.8091]
[1758635479209,7.58,219.41,219.25,63.8091]
[1758635479410,7.58325689,219.44,219.29,7.03]
[1758635479411,5.05550459,219.44,219.29,7.03]
[1758635479911,4.0985,219.44,219.32,4.1007]
[1758635480118,5.05550459,219.44,219.29,7.03]
[1758635480318,5.05550459,219.45,219.29,70.8274]
[1758635480707,5.05550459,219.44,219.32,63.7897]
[1758635480909,15.16325689,219.47,219.32,63.7897]
[1758635480910,5.05550459,219.46,219.33,7.03]
[1758635481713,5.05550459,219.46,219.34,63.7836]
[1758635481915,5.05550459,219.52,219.39,63.7683]
[1758635482118,7.58,219.53,219.41,7.03]
[1758635482317,5.05550459,219.55,219.41,7.03]
[1758635482717,4.0963,219.56,219.43,63.7579]
[1758635482910,7.58,219.58,219.44,63.7549]
[1758635482911,12.63550459,219.58,219.44,63.7549]
[1758635483110,12.63550459,219.58,219.47,4.0979]
[1758635483313,7.58,219.58,219.47,4.0979]
[1758635483919,12.63550459,219.58,219.49,4.0975]
[1758635484120,125.77550459,219.61,219.49,4.0975]
[1758635484325,5.05550459,219.6,219.46,7.57]
[1758635484628,125.77550459,219.61,219.46,7.57]
[1758635484825,470.23550459,219.62,219.47,63.7453]
[1758635485026,470.23550459,219.62,219.52,4.097]
[1758635485417,465.18,219.62,219.52,4.097]
[1758635485625,344.48,219.62,219.5,7.57]
[1758635485925,4.0954,219.61,219.5,7.57]
[1758635486222,7.08,219.59,219.45,4.0982]
[1758635486421,4.0961,219.57,219.45,4.0982]
[1758635486626,7.08,219.59,219.45,4.0982]
[1758635487230,4.096,219.58,219.45,4.0982]
[1758635487423,4.096,219.58,219.47,4.0979]
[1758635487724,4.096,219.58,219.44,7.57]
[1758635488124,4.096,219.58,219.46,4.0981]
[1758635488428,7.08,219.59,219.47,7.57]
[1758635488628,7.08,219.59,219.48,63.7415]
[1758635488825,7.08,219.59,219.47,7.57]
[1758635489027,7.08,219.59,219.48,4.0977]
[1758635489228,7.08,219.59,219.47,7.57]
[1758635489530,7.08,219.59,219.48,63.7434]
[1758635489730,7.08,219.59,219.52,4.097]
[1758635489926,7.08,219.59,219.47,7.57]
[1758635490731,120.56,219.61,219.49,63.7397]
[1758635491322,120.56,219.61,219.52,4.0969]
[1758635491525,120.56,219.61,219.47,7.57]
[1758635491729,4.0957,219.59,219.49,4.0974]
[1758635492630,4.0957,219.59,219.47,7.57]
[1758635493026,7.08,219.56,219.39,7.57]
[1758635493225,7.08,219.54,219.42,4.0988]
[1758635493436,7.08,219.54,219.39,7.57]
[1758635494139,4.0969,219.53,219.39,7.57]
[1758635494432,7.08,219.54,219.38,63.7715]
[1758635494433,7.08,219.54,219.43,7.57]
[1758635494637,120.18,219.58,219.45,63.7507]
[1758635495025,7.08,219.57,219.43,7.57]
[1758635495224,7.08,219.57,219.45,4.0983]
[1758635495933,4.0963,219.56,219.46,4.0979]
[1758635496239,351.56,219.62,219.48,63.7435]
[1758635496431,471.68,219.62,219.49,63.7403]
[1758635497032,471.68,219.62,219.46,7.57]
[1758635497928,351.56,219.62,219.48,63.7435]
[1758635498130,351.56,219.62,219.52,63.7315]
[1758635498438,7.08,219.67,219.53,63.7287]
[1758635498641,120.04,219.66,219.54,7.57]
[1758635499139,120.04,219.66,219.57,4.0959]
[1758635499333,120.04,219.66,219.54,7.57]
[1758635499730,120.04,219.66,219.54,11.6664]
[1758635499934,120.04,219.66,219.54,7.57]
[1758635500335,124.1346,219.66,219.54,7.57]
[1758635500539,124.1346,219.66,219.48,63.7421]
[1758635500540,7.08,219.65,219.48,63.7421]
[1758635500731,7.08,219.63,219.47,7.57]
[1758635501131,7.08,219.63,219.5,4.0972]
[1758635501340,7.08,219.63,219.49,63.7401]
[1758635501546,7.08,219.63,219.47,7.57]
[1758635502238,7.08,219.63,219.49,63.7401]
[1758635502437,7.08,219.63,219.5,7.57]
[1758635502638,7.08,219.63,219.45,63.7514]
[1758635502639,7.08,219.62,219.44,153.6833]
[1758635502943,4.0955,219.6,219.46,63.7484]
[1758635503245,7.08,219.62,219.51,4.0972]
[1758635504144,7.08,219.62,219.52,71.3006]
[1758635504343,88.31550459,219.67,219.52,71.3006]
[1758635504543,4.0945,219.66,219.56,4.0962]
[1758635504741,88.31550459,219.67,219.52,7.57]
[1758635505137,88.31550459,219.67,219.48,63.7412]
[1758635505138,70.7775,219.64,219.48,7.57]
[1758635505441,75.83300459,219.64,219.48,7.57]
[1758635506152,11.1759,219.59,219.48,7.57]
[1758635506451,7.08,219.63,219.49,63.739]
[1758635506635,11.1751,219.63,219.53,4.0966]
[1758635506839,7.08,219.63,219.53,4.0966]
[1758635507151,7.08,219.63,219.49,63.739]
[1758635507342,7.08,219.63,219.48,7.57]
[1758635507845,4.0963,219.56,219.47,4.0979]
[1758635508245,7.08,219.57,219.49,4.0974]
[1758635508454,7.08,219.57,219.46,63.7489]
[1758635508649,7.08,219.57,219.43,71.3279]
[1758635508845,13.77856005,219.63,219.5,7.57]
[1758635508846,65.05550459,219.63,219.5,7.57]
[1758635509044,7.08,219.63,219.5,7.57]
[1758635509442,11.175,219.63,219.55,4.0963]
[1758635509645,7.08,219.63,219.5,7.57]
[1758635509843,4.0953,219.62,219.5,7.57]
[1758635510049,7.08,219.63,219.5,7.57]
[1758635510443,4.0955,219.6,219.51,4.097]
[1758635510845,7.08,219.61,219.44,7.57]
[1758635511048,63.7308,219.53,219.44,7.57]
[1758635511346,7.08,219.44,219.24,63.8131]
[1758635511560,7.08,219.44,219.29,4.1012]
[1758635511561,129.33550459,219.43,219.29,4.1012]
[1758635511854,131.36,219.44,219.27,63.804]
[1758635512155,63.7585,219.43,219.25,63.8088]
[1758635512647,136.41550459,219.44,219.28,4.1014]
[1758635512853,7.08,219.44,219.3,63.7954]
[1758635513049,131.28,219.44,219.3,63.7954]
[1758635513352,131.28,219.44,219.3,2.9]
[1758635513742,7.08,219.44,219.32,4.1006]
[1758635513944,7.08,219.44,219.3,2.9]
[1758635514352,4.099,219.42,219.31,4.1008]
[1758635514651,7.08,219.44,219.3,2.9]
[1758635515155,4.0987,219.43,219.3,2.9]
[1758635515852,4.0987,219.43,219.32,4.1007]
[1758635517151,7.08,219.44,219.34,4.1003]
[1758635517353,7.08,219.44,219.32,63.7894]
[1758635517653,7.08,219.44,219.3,66.6945]
[1758635517654,7.08,219.44,219.33,2.9]
[1758635517958,4.0988,219.43,219.33,7.0004]
[1758635518459,4.0988,219.43,219.28,63.8011]
[1758635518460,7.08,219.44,219.29,63.7986]
[1758635518658,7.08,219.44,219.3,2.9]
[1758635518957,7.08,219.44,219.34,4.1003]
[1758635519158,11.1785,219.44,219.3,2.9]
[1758635519857,11.1785,219.44,219.35,4.1001]
[1758635520355,7.08,219.44,219.35,4.1001]
[1758635520556,7.58,219.5,219.36,63.7766]
[1758635520759,131.0,219.5,219.35,66.6809]
[1758635521058,7.58,219.5,219.35,66.6809]
[1758635521357,7.58,219.5,219.38,66.6712]
[1758635521554,7.58,219.5,219.38,2.9]
[1758635521756,11.6774,219.5,219.38,6.9995]
[1758635521961,11.6774,219.5,219.38,2.9]
[1758635523048,7.58,219.5,219.39,4.0994]
[1758635523253,7.58,219.5,219.38,2.9]
[1758635523750,7.58,219.5,219.43,4.0987]
[1758635524657,123.08,219.54,219.41,63.7623]
[1758635525155,123.08,219.54,219.42,4.0988]
[1758635525358,123.08,219.54,219.4,63.7664]
[1758635526558,4.0969,219.53,219.43,4.0985]
[1758635527057,7.58,219.53,219.38,2.9]
[1758635527458,4.0975,219.5,219.41,4.0991]
[1758635527658,7.58,219.53,219.41,4.0991]
[1758635527855,7.58,219.53,219.38,2.9]
[1758635527856,7.58,219.53,219.42,63.7605]
[1758635528054,7.58325689,219.59,219.42,63.7605]
[1758635528055,7.58,219.59,219.49,4.0975]
[1758635529156,4.0961,219.58,219.46,6.9881]
[1758635529355,7.58,219.59,219.46,2.89]
[1758635529662,6.19530316,219.63,219.5,2.89]
[1758635529854,4.0953,219.61,219.5,2.89]
[1758635530453,7.05,219.63,219.5,2.89]
[1758635530862,7.05,219.63,219.51,63.7347]
[1758635531262,7.05,219.63,219.5,6.9873]
[1758635531453,7.05,219.63,219.5,2.89]
[1758635531657,7.05,219.63,219.54,4.0967]
[1758635531964,7.05,219.63,219.5,2.89]
[1758635532363,4.0954,219.61,219.5,2.89]
[1758635532668,7.05,219.63,219.5,2.89]
[1758635533368,7.05,219.63,219.53,2.89]
[1758635534366,4.0952,219.62,219.53,2.89]
[1758635534665,7.05,219.63,219.53,2.89]
[1758635534859,4.0952,219.62,219.48,2.89]
[1758635535062,7.05,219.61,219.48,2.89]
[1758635535467,7.05,219.61,219.51,4.0972]
[1758635535671,6.19530316,219.6,219.42,66.6487]
[1758635535869,7.05,219.59,219.44,63.7546]
[1758635536069,4.0959,219.58,219.42,2.89]
[1758635536368,4.0959,219.58,219.42,66.6507]
[1758635536566,7.05,219.57,219.43,63.7584]
[1758635536771,7.05,219.57,219.47,66.6362]
[1758635536975,7.05,219.57,219.47,2.89]
[1758635537275,7.05,219.57,219.42,2.89]
[1758635537665,4.0967,219.54,219.45,4.0982]
[1758635537860,7.05,219.53,219.42,66.6499]
[1758635538170,7.05,219.53,219.42,2.89]
[1758635538475,7.05,219.53,219.35,414.45420316]
[1758635538476,7.05,219.53,219.37,63.7756]
[1758635538665,7.05,219.53,219.38,63.7726]
[1758635538870,7.05,219.6,219.46,66.6393]
[1758635539168,7.05,219.6,219.48,63.7433]
[1758635539370,7.05,219.6,219.52,4.0969]
[1758635541171,7.05,219.6,219.46,2.89]
[1758635541362,7.05,219.6,219.46,66.6391]
[1758635541568,7.05,219.6,219.55,4.0964]
[1758635542068,7.05,219.59,219.55,4.0964]
[1758635542264,6.19530316,219.63,219.55,4.0964]
[1758635543071,128.97,219.64,219.52,4.0969]
[1758635543272,128.97,219.64,219.5,2.89]
[1758635543568,7.57,219.71,219.59,63.7112]
[1758635544166,7.57,219.71,219.57,2.89]
[1758635544570,63.6803,219.7,219.57,2.89]
[1758635544867,7.57,219.69,219.55,63.7234]
[1758635545071,7.57,219.69,219.57,2.89]
[1758635545473,7.57,219.69,219.57,66.6077]
[1758635545674,108.95,219.74,219.58,63.7147]
[1758635545872,4.0935,219.72,219.62,4.095]
[1758635546067,4.0935,219.72,219.58,63.7147]
[1758635546068,108.95,219.74,219.57,2.89]
[1758635546271,71.2447,219.72,219.57,2.89]
[1758635546464,7.57,219.7,219.57,2.89]
[1758635546664,7.57,219.67,219.49,96.2603]
[1758635546868,13.76530316,219.67,219.5,2.89]
[1758635547469,13.76530316,219.67,219.52,63.7314]
[1758635547776,13.76530316,219.67,219.53,2.89]
[1758635547972,4.0953,219.62,219.54,4.0966]
[1758635548367,7.57,219.64,219.48,2.89]
[1758635548675,63.6948,219.65,219.48,2.89]
[1758635548676,7.57,219.62,219.48,2.89]
[1758635549077,4.0954,219.61,219.5,4.0974]
[1758635549277,7.57,219.62,219.5,4.0974]
[1758635549782,4.0952,219.63,219.5,2.89]
[1758635550778,7.57,219.66,219.51,63.735]
[1758635551075,7.57,219.66,219.53,2.89]
[1758635551884,71.2624,219.66,219.53,6.9867]
[1758635552074,7.57,219.64,219.48,2.89]
[1758635552876,4.0957,219.59,219.49,4.0974]
[1758635553175,4.0957,219.59,219.48,2.89]
[1758635553573,63.7093,219.6,219.48,6.9877]
[1758635554669,7.57,219.61,219.49,4.0974]
[1758635555074,4.0959,219.59,219.48,2.89]
[1758635555278,4.0959,219.59,219.42,58.60499077]
[1758635555279,7.57,219.59,219.41,2.89]
[1758635556479,4.0965,219.56,219.46,4.098]
[1758635557975,7.57,219.55,219.46,4.098]
[1758635558778,7.57,219.55,219.43,4.0986]
[1758635559687,7.57,219.55,219.44,4.0984]
[1758635559874,7.57,219.55,219.41,2.89]
[1758635560379,11.6667,219.55,219.45,4.0982]
[1758635560576,11.6667,219.55,219.45,63.7526]
[1758635560577,7.57,219.55,219.45,63.7526]
[1758635560779,7.57,219.6,219.45,63.7526]
[1758635561581,7.57,219.6,219.5,4.0973]
[1758635561780,7.57,219.6,219.48,2.89]
[1758635562378,7.57,219.6,219.49,63.7401]
[1758635562984,7.57,219.6,219.51,66.6237]
[1758635563683,5.05550459,219.66,219.51,66.6237]
[1758635563684,4.095,219.64,219.57,4.0961]
[1758635563879,4.095,219.64,219.51,2.89]
[1758635564880,7.57,219.64,219.47,63.7464]
[1758635565082,7.57,219.64,219.46,2.89]
[1758635565282,12.62550459,219.64,219.49,66.631]
[1758635565484,7.57,219.64,219.49,66.631]
[1758635566185,4.0952,219.62,219.53,4.0968]
[1758635567173,4.0952,219.62,219.51,4.0972]
[1758635567378,7.57,219.6,219.49,2.89]
[1758635568079,7.57,219.6,219.49,66.6297]
[1758635568490,5.05550459,219.63,219.54,4.0965]
[1758635568985,5.05550459,219.63,219.49,2.89]
[1758635569183,9.15070459,219.63,219.49,66.63]
[1758635569389,5.05550459,219.63,219.52,2.89]
[1758635570491,5.05550459,219.63,219.54,4.0966]
[1758635570689,7.57,219.62,219.52,2.89]
[1758635570894,12.62550459,219.62,219.52,2.89]
[1758635571389,7.57,219.62,219.52,2.89]
[1758635571588,5.05550459,219.65,219.52,2.89]
[1758635571792,5.05550459,219.65,219.53,63.7294]
[1758635571992,12.62550459,219.66,219.52,2.89]
[1758635572294,5.05550459,219.64,219.52,2.89]
[1758635572588,7.57,219.63,219.52,2.89]
[1758635572791,5.05550459,219.62,219.48,2.89]
[1758635573189,12.62550459,219.63,219.48,2.89]
[1758635573386,12.62550459,219.63,219.51,2.89]
[1758635573793,7.57,219.63,219.51,2.89]
[1758635574793,7.57,219.63,219.55,4.0963]
[1758635575196,7.57,219.63,219.51,2.89]
[1758635576188,4.0955,219.61,219.53,4.0967]
[1758635576590,7.57,219.63,219.53,4.0967]
[1758635576790,12.62550459,219.63,219.51,6.9872]
[1758635577700,12.62550459,219.63,219.51,2.89]
[1758635578596,16.72050459,219.63,219.55,4.0963]
[1758635578799,12.62550459,219.63,219.51,2.89]
[1758635578994,16.72050459,219.63,219.54,4.0965]
[1758635579899,4.0954,219.61,219.52,4.097]
[1758635580096,7.51,219.61,219.45,63.752]
[1758635580299,12.56550459,219.61,219.46,2.89]
[1758635581599,7.51,219.61,219.5,2.89]
[1758635581790,7.51,219.61,219.52,63.7325]
[1758635581993,5.05550459,219.64,219.54,2.89]
[1758635582193,7.51,219.65,219.54,2.89]
[1758635582390,5.05550459,219.64,219.54,2.89]
[1758635582594,12.56550459,219.63,219.47,76.71]
[1758635582899,5.05550459,219.62,219.47,76.71]
[1758635583092,7.51,219.59,219.48,63.7441]
[1758635583291,7.51,219.59,219.49,2.89]
[1758635584203,4.096,219.58,219.5,4.0973]
[1758635584405,7.51,219.59,219.49,2.89]
[1758635584703,7.51,219.59,219.49,6.9875]
[1758635584704,4.0961,219.58,219.49,6.9875]
[1758635585390,4.0961,219.58,219.4,2.89]
[1758635585391,63.7152,219.58,219.4,2.89]
[1758635585596,5.05550459,219.55,219.4,2.89]
[1758635585802,7.51,219.54,219.4,2.89]
[1758635585992,7.51,219.54,219.42,4.0989]
[1758635586189,7.51,219.54,219.4,2.89]
[1758635586803,7.51,219.5,219.4,6.9891]
[1758635586999,7.51,219.5,219.4,2.89]
[1758635587704,7.51,219.5,219.38,345.02012692]
[1758635588004,12.56550459,219.5,219.35,2.89]
[1758635588402,7.51,219.5,219.38,4.0996]
[1758635589401,4.0982,219.46,219.36,4.1]
[1758635589606,7.51,219.45,219.36,4.1]
[1758635590007,7.51,219.45,219.35,2.89]
[1758635590008,4.0986,219.44,219.35,2.89]
[1758635590199,63.7505,219.46,219.29,2.89]
[1758635590403,7.51,219.45,219.3,63.7951]
[1758635590603,7.51,219.45,219.33,66.6775]
[1758635591005,5.05550459,219.49,219.39,4.0994]
[1758635591212,16.69290459,219.51,219.39,2.9]
[1758635591411,7.54,219.51,219.39,63.7691]
[1758635591614,7.54,219.51,219.4,6.9991]
[1758635592303,7.54,219.51,219.42,4.0989]
[1758635592712,7.54,219.51,219.4,66.6668]
[1758635592902,12.59550459,219.55,219.44,63.7555]
[1758635593102,7.54,219.55,219.44,63.7555]
[1758635593708,7.54,219.55,219.43,2.9]
[1758635594009,68.78050459,219.55,219.37,66.6755]
[1758635594213,12.59550459,219.54,219.37,2.9]
[1758635594614,7.54,219.52,219.37,2.9]
[1758635595111,4.0974,219.5,219.38,4.0995]
[1758635595308,7.54,219.49,219.38,4.0995]
[1758635595515,7.54,219.49,219.37,2.9]
[1758635595516,7.54,219.49,219.32,63.7903]
[1758635595712,7.54,219.45,219.31,2.9]
[1758635595917,7.54,219.45,219.31,122.28]
[1758635596218,7.54,219.45,219.35,4.1002]
[1758635596517,7.54,219.5,219.37,2.9]
[1758635597228,7.54,219.48,219.33,77.02]
[1758635598018,4.0984,219.45,219.33,77.02]
[1758635598227,7.54,219.45,219.33,77.02]
[1758635598428,7.54,219.5,219.35,2.9]
[1758635598925,11.6375,219.5,219.4,4.0993]
[1758635599732,11.6375,219.5,219.35,2.9]
[1758635600231,7.54,219.5,219.39,4.0995]
[1758635600422,7.54,219.5,219.39,2.9]
[1758635600624,16.69220459,219.55,219.39,2.9]
[1758635600833,16.69220459,219.55,219.41,4.0991]
[1758635601030,76.32000459,219.55,219.39,2.9]
[1758635601332,7.54,219.5,219.39,6.9994]
[1758635602927,63.7345,219.52,219.37,4.0998]
[1758635603232,7.56,219.51,219.37,4.0998]
[1758635603628,4.0981,219.47,219.35,6.9902]
[1758635603839,7.56,219.47,219.35,6.9902]
[1758635604533,7.56,219.47,219.36,4.0999]
[1758635605029,7.56,219.47,219.39,6.9894]
[1758635605932,7.56,219.47,219.39,2.89]
[1758635606123,4.0972,219.51,219.39,2.89]
[1758635606726,11.658,219.48,219.39,2.89]
[1758635606925,7.56,219.48,219.39,2.89]
[1758635607130,7.56,219.54,219.39,2.89]
[1758635608224,7.56,219.52,219.39,2.89]
[1758635608432,63.7354,219.51,219.39,2.89]
[1758635608733,7.56,219.49,219.36,2.89]
[1758635609628,4.0981,219.47,219.36,2.89]
[1758635610228,4.0981,219.47,219.37,4.0997]
[1758635610426,7.56,219.47,219.36,2.89]
[1758635610626,7.56,219.47,219.31,2.89]
[1758635610831,7.56,219.45,219.31,2.89]
[1758635611027,11.6591,219.41,219.31,2.89]
[1758635611835,11.6591,219.41,219.32,4.1006]